Document Date,Purchase Order No,Line Item No,Supplier ID,Supplier Name,Pro Class,Pro Class Description,Description of Goods (Purpose of expenditure look up),Service/Department   (SAP Hierarchy Position),Expense Area (cost centre desc),Net Order Value Over 5000.00 (line item value shown here),GL Code,Cost Centre/WBS
06/10/2020,ZAV683253,1,12402,VeryPC Ltd,270000,Information Communication Technology  ,Information and Communications Technology,Corporate and Support Services,IT AVA Non - SLA,"7,820.00",402001,13001
06/10/2020,ZAV683254,1,12351,Getech,270000,Information Communication Technology  ,Information and Communications Technology,Corporate and Support Services,IT AVA Non - SLA,"1,020.00",402001,13001
06/10/2020,ZAV683254,2,12351,Getech,270000,Information Communication Technology  ,Information and Communications Technology,Corporate and Support Services,IT AVA Non - SLA,"10,500.00",402001,13001
06/10/2020,ZAV683254,3,12351,Getech,270000,Information Communication Technology  ,Information and Communications Technology,Corporate and Support Services,IT AVA Non - SLA,900.00,402001,13001
06/10/2020,ZAV683254,4,12351,Getech,270000,Information Communication Technology  ,Information and Communications Technology,Corporate and Support Services,IT AVA Non - SLA,300.00,402001,13001
06/10/2020,ZAV683254,5,12351,Getech,270000,Information Communication Technology  ,Information and Communications Technology,Corporate and Support Services,IT AVA Non - SLA,"1,650.00",402001,13001
06/10/2020,ZAV683255,1,12402,VeryPC Ltd,270000,Information Communication Technology  ,Information and Communications Technology,Corporate and Support Services,IT AVA Non - SLA,"12,420.00",402001,13001
06/10/2020,ZAV683256,1,12402,VeryPC Ltd,270000,Information Communication Technology  ,Information and Communications Technology,Corporate and Support Services,IT AVA Non - SLA,"13,800.00",402001,13001
19/10/2020,ZAV683767,1,12351,Getech,270000,Information Communication Technology  ,Information and Communications Technology,Corporate and Support Services,IT AVA Non - SLA,510.00,402001,13001
19/10/2020,ZAV683767,2,12351,Getech,270000,Information Communication Technology  ,Information and Communications Technology,Corporate and Support Services,IT AVA Non - SLA,"6,270.00",402001,13001
19/10/2020,ZAV683767,3,12351,Getech,270000,Information Communication Technology  ,Information and Communications Technology,Corporate and Support Services,IT AVA Non - SLA,450.00,402001,13001
19/10/2020,ZAV683767,4,12351,Getech,270000,Information Communication Technology  ,Information and Communications Technology,Corporate and Support Services,IT AVA Non - SLA,150.00,402001,13001
19/10/2020,ZAV683767,5,12351,Getech,270000,Information Communication Technology  ,Information and Communications Technology,Corporate and Support Services,IT AVA Non - SLA,"1,295.00",402001,13001
21/10/2020,ZAV683873,1,12351,Getech,270000,Information Communication Technology  ,Information and Communications Technology,Corporate and Support Services,IT AVA Non - SLA,510.00,402001,13001
21/10/2020,ZAV683873,2,12351,Getech,270000,Information Communication Technology  ,Information and Communications Technology,Corporate and Support Services,IT AVA Non - SLA,"6,270.00",402001,13001
21/10/2020,ZAV683873,3,12351,Getech,270000,Information Communication Technology  ,Information and Communications Technology,Corporate and Support Services,IT AVA Non - SLA,450.00,402001,13001
21/10/2020,ZAV683873,4,12351,Getech,270000,Information Communication Technology  ,Information and Communications Technology,Corporate and Support Services,IT AVA Non - SLA,150.00,402001,13001
21/10/2020,ZAV683926,1,12351,Getech,270000,Information Communication Technology  ,Information and Communications Technology,Corporate and Support Services,IT AVA Non - SLA,510.00,402001,13001
21/10/2020,ZAV683926,2,12351,Getech,270000,Information Communication Technology  ,Information and Communications Technology,Corporate and Support Services,IT AVA Non - SLA,"5,250.00",402001,13001
21/10/2020,ZAV683926,3,12351,Getech,270000,Information Communication Technology  ,Information and Communications Technology,Corporate and Support Services,IT AVA Non - SLA,450.00,402001,13001
21/10/2020,ZAV683926,4,12351,Getech,270000,Information Communication Technology  ,Information and Communications Technology,Corporate and Support Services,IT AVA Non - SLA,150.00,402001,13001
21/10/2020,ZAV683926,5,12351,Getech,270000,Information Communication Technology  ,Information and Communications Technology,Corporate and Support Services,IT AVA Non - SLA,825.00,402001,13001
22/10/2020,ZAV683954,1,12351,Getech,181800,Environmental Services Technical Equipment ,Furniture and Equipment,Corporate and Support Services,IT AVA Non - SLA,340.00,400110,13001
22/10/2020,ZAV683954,2,12351,Getech,181800,Environmental Services Technical Equipment ,Furniture and Equipment,Corporate and Support Services,IT AVA Non - SLA,"4,460.00",400110,13001
22/10/2020,ZAV683954,3,12351,Getech,181800,Environmental Services Technical Equipment ,Furniture and Equipment,Corporate and Support Services,IT AVA Non - SLA,300.00,400110,13001
22/10/2020,ZAV683954,4,12351,Getech,181800,Environmental Services Technical Equipment ,Furniture and Equipment,Corporate and Support Services,IT AVA Non - SLA,100.00,400110,13001
23/10/2020,ZAV684005,1,35,CBC Computer Systems Ltd,270000,Information Communication Technology  ,Information and Communications Technology,Corporate and Support Services,IT AVA Non - SLA,"32,850.00",402001,13001
23/10/2020,ZAV684005,2,35,CBC Computer Systems Ltd,270000,Information Communication Technology  ,Information and Communications Technology,Corporate and Support Services,IT AVA Non - SLA,"3,150.00",402001,13001
27/10/2020,ZAV684127,1,9441,Softcat Ltd,210000,Furniture & Soft Furnishings  ,Furniture and Equipment,Corporate and Support Services,IT AVA Non - SLA,"6,326.40",400105,13001
27/10/2020,ZAV684127,2,9441,Softcat Ltd,210000,Furniture & Soft Furnishings  ,Furniture and Equipment,Corporate and Support Services,IT AVA Non - SLA,"1,695.12",400105,13001
27/10/2020,ZAV684135,1,13911,Datto Europe Ltd,390000,"Works - Construction, Repair & Maintenance  ",Fees and Charges,Corporate and Support Services,IT AVA Non - SLA,"5,040.00",401017,13001
12/11/2020,ZAV684798,1,12351,Getech,181800,Environmental Services Technical Equipment ,Furniture and Equipment,Corporate and Support Services,IT AVA Non - SLA,510.00,400110,13001
12/11/2020,ZAV684798,2,12351,Getech,181800,Environmental Services Technical Equipment ,Furniture and Equipment,Corporate and Support Services,IT AVA Non - SLA,"5,250.00",400110,13001
12/11/2020,ZAV684798,3,12351,Getech,181800,Environmental Services Technical Equipment ,Furniture and Equipment,Corporate and Support Services,IT AVA Non - SLA,450.00,400110,13001
12/11/2020,ZAV684798,4,12351,Getech,181800,Environmental Services Technical Equipment ,Furniture and Equipment,Corporate and Support Services,IT AVA Non - SLA,150.00,400110,13001
27/11/2020,ZAV685327,1,12351,Getech,270000,Information Communication Technology  ,Information and Communications Technology,Corporate and Support Services,IT AVA Non - SLA,510.00,402001,13001
27/11/2020,ZAV685327,2,12351,Getech,270000,Information Communication Technology  ,Information and Communications Technology,Corporate and Support Services,IT AVA Non - SLA,"5,250.00",402001,13001
27/11/2020,ZAV685327,3,12351,Getech,270000,Information Communication Technology  ,Information and Communications Technology,Corporate and Support Services,IT AVA Non - SLA,450.00,402001,13001
27/11/2020,ZAV685327,4,12351,Getech,270000,Information Communication Technology  ,Information and Communications Technology,Corporate and Support Services,IT AVA Non - SLA,150.00,402001,13001
27/11/2020,ZAV685327,5,12351,Getech,270000,Information Communication Technology  ,Information and Communications Technology,Corporate and Support Services,IT AVA Non - SLA,825.00,402001,13001
27/11/2020,ZAV685372,1,13068,addNetworks,181800,Environmental Services Technical Equipment ,Furniture and Equipment,Corporate and Support Services,IT AVA Non - SLA,"2,365.00",400110,13001
27/11/2020,ZAV685372,2,13068,addNetworks,181800,Environmental Services Technical Equipment ,Furniture and Equipment,Corporate and Support Services,IT AVA Non - SLA,816.00,400110,13001
27/11/2020,ZAV685372,3,13068,addNetworks,181800,Environmental Services Technical Equipment ,Furniture and Equipment,Corporate and Support Services,IT AVA Non - SLA,"1,188.00",400110,13001
27/11/2020,ZAV685372,4,13068,addNetworks,181800,Environmental Services Technical Equipment ,Furniture and Equipment,Corporate and Support Services,IT AVA Non - SLA,"1,130.00",400110,13001
27/11/2020,ZAV685372,5,13068,addNetworks,181800,Environmental Services Technical Equipment ,Furniture and Equipment,Corporate and Support Services,IT AVA Non - SLA,10.00,400110,13001
08/12/2020,ZAV685724,1,12351,Getech,270000,Information Communication Technology  ,Information and Communications Technology,Corporate and Support Services,IT AVA Non - SLA,544.00,402001,13001
08/12/2020,ZAV685724,2,12351,Getech,270000,Information Communication Technology  ,Information and Communications Technology,Corporate and Support Services,IT AVA Non - SLA,"6,848.00",402001,13001
08/12/2020,ZAV685724,3,12351,Getech,270000,Information Communication Technology  ,Information and Communications Technology,Corporate and Support Services,IT AVA Non - SLA,480.00,402001,13001
08/12/2020,ZAV685724,4,12351,Getech,270000,Information Communication Technology  ,Information and Communications Technology,Corporate and Support Services,IT AVA Non - SLA,160.00,402001,13001
08/12/2020,ZAV685724,5,12351,Getech,270000,Information Communication Technology  ,Information and Communications Technology,Corporate and Support Services,IT AVA Non - SLA,825.00,402001,13001
14/12/2020,ZAV685865,1,12351,Getech,270000,Information Communication Technology  ,Information and Communications Technology,Corporate and Support Services,IT AVA Non - SLA,340.00,402001,13001
14/12/2020,ZAV685865,2,12351,Getech,270000,Information Communication Technology  ,Information and Communications Technology,Corporate and Support Services,IT AVA Non - SLA,"4,280.00",402001,13001
14/12/2020,ZAV685865,3,12351,Getech,270000,Information Communication Technology  ,Information and Communications Technology,Corporate and Support Services,IT AVA Non - SLA,300.00,402001,13001
14/12/2020,ZAV685865,4,12351,Getech,270000,Information Communication Technology  ,Information and Communications Technology,Corporate and Support Services,IT AVA Non - SLA,100.00,402001,13001
16/12/2020,ZAV686061,1,12351,Getech,270000,Information Communication Technology  ,Information and Communications Technology,Corporate and Support Services,IT AVA Non - SLA,510.00,402001,13001
16/12/2020,ZAV686061,2,12351,Getech,270000,Information Communication Technology  ,Information and Communications Technology,Corporate and Support Services,IT AVA Non - SLA,"5,370.00",402001,13001
16/12/2020,ZAV686061,3,12351,Getech,270000,Information Communication Technology  ,Information and Communications Technology,Corporate and Support Services,IT AVA Non - SLA,450.00,402001,13001
16/12/2020,ZAV686061,4,12351,Getech,270000,Information Communication Technology  ,Information and Communications Technology,Corporate and Support Services,IT AVA Non - SLA,150.00,402001,13001
16/12/2020,ZAV686061,5,12351,Getech,270000,Information Communication Technology  ,Information and Communications Technology,Corporate and Support Services,IT AVA Non - SLA,825.00,402001,13001
19/10/2020,ZES683729,1,7753,Netcall Technology Limited,270000,Information Communication Technology  ,Information and Communications Technology,Corporate and Support Services,IT Infrastructure,"51,750.00",402010,11324
22/10/2020,ZES683982,1,12251,Aristi Limited,270000,Information Communication Technology  ,Information and Communications Technology,Corporate and Support Services,IT Infrastructure,800.00,402002,11324
22/10/2020,ZES683982,2,12251,Aristi Limited,270000,Information Communication Technology  ,Information and Communications Technology,Corporate and Support Services,IT Infrastructure,"1,200.00",402002,11324
22/10/2020,ZES683982,3,12251,Aristi Limited,270000,Information Communication Technology  ,Information and Communications Technology,Corporate and Support Services,IT Infrastructure,400.00,402002,11324
22/10/2020,ZES683982,4,12251,Aristi Limited,270000,Information Communication Technology  ,Information and Communications Technology,Corporate and Support Services,IT Infrastructure,800.00,402002,11324
22/10/2020,ZES683982,5,12251,Aristi Limited,270000,Information Communication Technology  ,Information and Communications Technology,Corporate and Support Services,IT Infrastructure,400.00,402002,11324
22/10/2020,ZES683982,6,12251,Aristi Limited,270000,Information Communication Technology  ,Information and Communications Technology,Corporate and Support Services,IT Infrastructure,"1,200.00",402002,11324
22/10/2020,ZES683982,7,12251,Aristi Limited,270000,Information Communication Technology  ,Information and Communications Technology,Corporate and Support Services,IT Infrastructure,"1,800.00",402002,11324
07/12/2020,ZES685616,1,2927,XMA Ltd,270000,Information Communication Technology  ,Information and Communications Technology,Corporate and Support Services,IT Infrastructure,"30,500.00",402001,11324
07/12/2020,ZES685671,1,13608,ElephantWifi,270000,Information Communication Technology  ,Information and Communications Technology,Corporate and Support Services,IT Infrastructure,"8,232.00",402002,11324
09/12/2020,ZES685742,1,2927,XMA Ltd,270000,Information Communication Technology  ,Information and Communications Technology,Corporate and Support Services,IT Infrastructure,"11,770.50",402002,11324
09/12/2020,ZES685742,2,2927,XMA Ltd,270000,Information Communication Technology  ,Information and Communications Technology,Corporate and Support Services,IT Infrastructure,"2,281.50",402002,11324
17/12/2020,ZES686103,1,7130,Vanix,270000,Information Communication Technology  ,Information and Communications Technology,Corporate and Support Services,IT Infrastructure,"8,328.13",402002,11324
22/12/2020,ZES686230,1,544,Phoenix Software Ltd,#N/A,#N/A,#N/A,Corporate and Support Services,IT Infrastructure,"9,920.88",400999,11324
30/12/2020,ZES686316,1,13431,Specops Software Ltd,270000,Information Communication Technology  ,Information and Communications Technology,Corporate and Support Services,IT Infrastructure,"5,685.12",402002,11324
02/10/2020,ZFC683114,1,2458,Northern Insulation Contractor,390000,"Works - Construction, Repair & Maintenance  ",Repairs and Maintenance,#N/A,#N/A,"70,290.00",200120,C.10423.184
15/12/2020,ZFC685937,1,3529,Totally Local Company Ltd,192200,Facilities & Management Services Security ,Security,Services to Place,SPB Operational Est.,"10,520.45",201206,11662
02/11/2020,ZHS684296,1,14218,BB7,390000,"Works - Construction, Repair & Maintenance  ",Capital Expenditure - Works,#N/A,#N/A,"7,250.00",200311,C.10937.002
15/12/2020,ZHS685991,1,8323,Wilkinson Cowan Partnership Lt,390000,Supplies and services,Supplies and services,#N/A,#N/A,"47,128.59",401600,C.10945.002
26/11/2020,ZPC685305,1,11021,The Laurus Trust (Cheadle Hulm,261400,Human Resources Temporary & Agency Staff ,Agency Staff,Services to People,Pendlebury PRU,"2,955.26",100290,10318
26/11/2020,ZPC685305,2,11021,The Laurus Trust (Cheadle Hulm,261400,Human Resources Temporary & Agency Staff ,Agency Staff,Services to People,Cedars PRU,"1,970.18",100290,10317
26/11/2020,ZPC685305,3,11021,The Laurus Trust (Cheadle Hulm,261400,Human Resources Temporary & Agency Staff ,Agency Staff,Services to People,Pendlebury PRU,"2,955.26",100290,10318
26/11/2020,ZPC685305,4,11021,The Laurus Trust (Cheadle Hulm,261400,Human Resources Temporary & Agency Staff ,Agency Staff,Services to People,Cedars PRU,"1,970.18",100290,10317
26/11/2020,ZPC685305,5,11021,The Laurus Trust (Cheadle Hulm,261400,Human Resources Temporary & Agency Staff ,Agency Staff,Services to People,Pendlebury PRU,"2,955.26",100290,10318
26/11/2020,ZPC685305,6,11021,The Laurus Trust (Cheadle Hulm,261400,Human Resources Temporary & Agency Staff ,Agency Staff,Services to People,Cedars PRU,"1,970.18",100290,10317
28/10/2020,ZSA684155,1,9850,Great Places Housing Group,202000,Financial Services Rents ,Rents,Services to People,Millview Respite,"17,086.23",200700,11033
09/11/2020,ZSB684607,1,3529,Totally Local Company Ltd,111200,Catering Food & Beverages ,Catering Supplies,Services to People,Highfields PRU,"5,783.40",400422,10329
09/11/2020,ZSB684607,2,3529,Totally Local Company Ltd,390000,"Works - Construction, Repair & Maintenance  ",Repairs and Maintenance,Services to People,Highfields PRU,392.67,200160,10329
15/10/2020,ZZC683598,1,3704,Belle Vue (Manchester) Ltd,381600,Vehicle Management Hire/Leasing ,Leasing /Transport Hire,Services to People,Incl - Sch Link Prog,"7,940.00",300302,10692
16/10/2020,ZZC683654,1,12793,Aspire Therapy Services Ltd,999999,Fees and Charges,Fees and Charges,Services to People,RAA - ASF Grant,"5,000.00",401035,12968
16/10/2020,ZZC683655,1,12677,Adopters for Adoption Ltd,320000,Social Community Care Supplies & Services  ,Care Payments,Services to People,RAA Adoption Count,"32,063.00",530306,12957
16/10/2020,ZZC683656,1,13804,Nottinghamshire County Council,320000,Social Community Care Supplies & Services  ,Care Payments,Services to People,RAA Adoption Count,"27,000.00",530306,12957
22/10/2020,ZZC683990,1,8249,Creative Concern Ltd,190000,Facilities & Management Services  ,Office Expenses,Services to People,RAA Adoption Count,"8,370.00",400700,12957
22/10/2020,ZZC683991,1,12675,Tiptoes Child Therapy Services,999999,Fees and Charges,Fees and Charges,Services to People,RAA - ASF Grant,"10,000.00",401035,12968
23/10/2020,ZZC684031,1,12675,Tiptoes Child Therapy Services,150000,Consultancy   ,Professional Fees,Services to People,FP - Special Guardia,"5,000.00",401007,13012
26/10/2020,ZZC684082,1,12675,Tiptoes Child Therapy Services,999999,Fees and Charges,Fees and Charges,Services to People,RAA - ASF Grant,"5,000.00",401035,12968
26/10/2020,ZZC684086,1,12106,KMS Media,190000,Facilities & Management Services  ,Office Expenses,Services to People,RAA Adoption Count,"6,940.00",400700,12957
04/11/2020,ZZC684419,1,12675,Tiptoes Child Therapy Services,999999,Fees and Charges,Fees and Charges,Services to People,RAA - ASF Grant,"5,000.00",401035,12968
04/11/2020,ZZC684420,1,13020,Intraquest Limited,999999,Fees and Charges,Fees and Charges,Services to People,RAA - ASF Grant,"5,757.00",401035,12968
08/11/2020,ZZC684530,1,13213,Birmingham Children's Trust,320000,Social Community Care Supplies & Services  ,Care Payments,Services to People,RAA Adoption Count,"9,000.00",530306,12957
17/11/2020,ZZC684933,1,12677,Adopters for Adoption Ltd,320000,Social Community Care Supplies & Services  ,Care Payments,Services to People,RAA Adoption Count,"32,063.00",530306,12957
17/11/2020,ZZC684934,1,12675,Tiptoes Child Therapy Services,999999,Fees and Charges,Fees and Charges,Services to People,RAA - ASF Grant,"5,000.00",401035,12968
23/11/2020,ZZC685154,1,12298,One Education Ltd,999999,Fees and Charges,Fees and Charges,Services to People,RAA - ASF Grant,"9,900.00",401035,12968
24/11/2020,ZZC685188,1,14444,John Crossfield,999999,Fees and Charges,Fees and Charges,Services to People,RAA - ASF Grant,"5,000.00",401035,12968
08/12/2020,ZZC685684,1,4026,Adoption UK,150000,Consultancy   ,Professional Fees,Services to People,RAA Adoption Count,"13,917.00",401020,12957
10/12/2020,ZZC685824,1,11417,Parents and Children Together,320000,Social Community Care Supplies & Services  ,Care Payments,Services to People,RAA Adoption Count,"35,269.30",530306,12957
16/12/2020,ZZC686015,1,12675,Tiptoes Child Therapy Services,999999,Fees and Charges,Fees and Charges,Services to People,RAA - ASF Grant,"5,000.00",401035,12968
18/12/2020,ZZC686128,1,12661,University College London Tuit,260000,Human Resources  ,Staff Training,Services to People,Sensory Support Serv,"6,565.00",102020,10325
01/10/2020,ZZH683063,1,6748,GEORGE COX & SONS LTD,150000,Consultancy   ,Professional Fees,Services to Place,Special Project 8,"25,903.72",401020,11274
02/10/2020,ZZH683128,1,13180,Shane McDaid t/a Pro-fit Carpe,999999,UNCLASSIFIED  ,MISCLASSIFIED? CHECK BEFORE PUBLICATION,Services to People,SC - Broadfield,"12,000.00",100100,11443
02/10/2020,ZZH683140,1,3290,Royal Mail,#N/A,#N/A,#N/A,Corporate and Support Services,POD Communications,"7,465.91",400999,11323
02/10/2020,ZZH683151,1,12808,Edenhouse Solutions Limited,150000,Consultancy   ,Professional Fees,Corporate and Support Services,IT Systems,"83,600.00",401007,12503
05/10/2020,ZZH683154,1,13852,The Gift Voucher Shop UK Ltd,290000,Arts & Leisure Services  ,Publicity and Promotion,Services to People,SC - Leaving Care,"5,000.00",401801,11501
05/10/2020,ZZH683184,1,1104,Age UK Stockport,150000,Consultancy   ,Professional Fees,Services to People,PH-Local Pilot,"5,000.00",401020,13047
05/10/2020,ZZH683197,1,14346,Pennine Medical Supplies Ltd,#N/A,#N/A,#N/A,Corporate and Support Services,CSS Management,"8,400.00",400999,12499
06/10/2020,ZZH683200,1,3529,Totally Local Company Ltd,391200,"Works - Construction, Repair & Maintenance Engineering ",Professional Fees,Services to Place,Town Centre Devt Tea,"7,681.52",401032,10072
06/10/2020,ZZH683219,1,10841,Whistl UK Limited,300000,Mail Services�  ,Office Expenses,Corporate and Support Services,Mailroom Service,"37,500.00",400711,11152
06/10/2020,ZZH683220,1,3290,Royal Mail,300000,Mail Services�  ,Office Expenses,Corporate and Support Services,Mailroom Service,"10,000.00",400711,11152
06/10/2020,ZZH683224,1,10674,Ortoo Technologies Ltd,261500,Human Resources Training & Conferences ,Fees and Charges,Services to People,SI - School Govern,"5,000.00",401024,10755
06/10/2020,ZZH683245,1,5214,WSP GROUP PLC,391114,"Works - Construction, Repair & Maintenance Buildings Surveys",Capital Expenditure - Fees,#N/A,#N/A,"17,499.00",200316,C.01289.201
07/10/2020,ZZH683306,1,5464,ELECTRICITY NORTH WEST LIMITED,230000,Highway Equipment & Materials�   ,Highways Maintenance,#N/A,#N/A,"87,811.13",202055,C.01270.202
08/10/2020,ZZH683316,1,11715,CBRE,150000,Consultancy   ,Professional Fees,#N/A,#N/A,"21,000.00",401007,C.10932.004
08/10/2020,ZZH683321,1,7025,CBRE Limited,150000,Consultancy   ,Professional Fees,#N/A,#N/A,"21,000.00",401007,C.10932.004
08/10/2020,ZZH683335,1,13860,Howard Lynn Property Ltd,261400,Human Resources Temporary & Agency Staff ,Agency Staff,Services to Place,Property Client Acct,"6,941.21",100290,12328
08/10/2020,ZZH683347,1,1644,Tameside MBC,150000,Consultancy   ,Professional Fees,Services to Place,Planning,"9,000.00",401007,12150
08/10/2020,ZZH683348,1,3529,Totally Local Company Ltd,390000,"Works - Construction, Repair & Maintenance  ",Capital Expenditure - Works,#N/A,#N/A,"7,270.00",200304,C.01281.203
08/10/2020,ZZH683350,1,5214,WSP GROUP PLC,150000,Consultancy   ,Professional Fees,Services to Place,Design Frmwk Staff,"45,326.28",401020,11965
09/10/2020,ZZH683362,1,1339,Stockport NHS Foundation Trust,310000,Healthcare  ,Third party payments - Public Sector,Services to People,SHV CSC Locality Lea,"2,247.75",500402,11514
09/10/2020,ZZH683362,1,1339,Stockport NHS Foundation Trust,310000,Healthcare  ,Third party payments - Public Sector,Services to People,HTV CSC Locality Lea,"2,247.75",500402,11516
09/10/2020,ZZH683362,1,1339,Stockport NHS Foundation Trust,310000,Healthcare  ,Third party payments - Public Sector,Services to People,CB/MW CSC Locality L,"2,254.50",500402,12188
09/10/2020,ZZH683398,1,1339,Stockport NHS Foundation Trust,310000,Healthcare  ,Third party payments - Public Sector,Services to People,DP - CEAS,"19,500.00",500401,12189
09/10/2020,ZZH683405,1,14071,DV - OMOS Ltd CHAPSor SWIFT,390000,"Works - Construction, Repair & Maintenance  ",Capital Expenditure - Works,#N/A,#N/A,"7,379.61",200304,C.01297.203
14/10/2020,ZZH683524,1,13451,HM Prison and Probation Servic,320000,Social Community Care Supplies & Services  ,Third party payments - Private/Voluntary Sector,Corporate and Support Services,GMCA Cmnity Sfty Fnd,"6,000.00",402403,12965
14/10/2020,ZZH683551,1,4708,The Dodd Group,390000,"Works - Construction, Repair & Maintenance  ",Repairs and Maintenance,#N/A,#N/A,"24,650.46",200121,C.11502.139
14/10/2020,ZZH683554,1,902,Bikeright,181800,Environmental Services Technical Equipment ,Furniture and Equipment,Services to Place,Highways-Road Safety,"50,400.00",400110,11970
14/10/2020,ZZH683555,1,3529,Totally Local Company Ltd,391114,"Works - Construction, Repair & Maintenance Buildings Surveys",Capital Expenditure - Fees,#N/A,#N/A,"5,140.50",200316,C.11508.007
15/10/2020,ZZH683620,1,3529,Totally Local Company Ltd,390000,"Works - Construction, Repair & Maintenance  ",Capital Expenditure - Works,#N/A,#N/A,"7,976.91",200304,C.00607.203
18/10/2020,ZZH683677,1,757,Transport for Greater Manchest,390000,"Works - Construction, Repair & Maintenance  ",Capital Expenditure - Works,#N/A,#N/A,"27,708.77",200304,C.01386.203
19/10/2020,ZZH683682,1,683,AECOM Limited,150000,Consultancy   ,Professional Fees,#N/A,#N/A,"40,592.88",401007,C.01326.201
19/10/2020,ZZH683683,1,6967,Wilde Consultants Ltd,150000,Consultancy   ,Professional Fees,Services to Place,Network Assets Staff,"39,500.00",401007,11959
19/10/2020,ZZH683684,1,6967,Wilde Consultants Ltd,150000,Consultancy   ,Professional Fees,Services to Place,Network Assets Staff,"42,750.00",401007,11959
19/10/2020,ZZH683685,1,6967,Wilde Consultants Ltd,150000,Consultancy   ,Professional Fees,Services to Place,Network Assets Staff,"12,654.00",401007,11959
19/10/2020,ZZH683686,1,82,Marwood Electrical Company Ltd,390000,"Works - Construction, Repair & Maintenance  ",Capital Expenditure - Works,#N/A,#N/A,"15,419.58",200304,C.01198.203
19/10/2020,ZZH683686,2,82,Marwood Electrical Company Ltd,390000,"Works - Construction, Repair & Maintenance  ",Capital Expenditure - Works,#N/A,#N/A,505.56,200304,C.01198.203
19/10/2020,ZZH683686,3,82,Marwood Electrical Company Ltd,390000,"Works - Construction, Repair & Maintenance  ",Capital Expenditure - Works,#N/A,#N/A,"54,263.44",200304,C.01198.203
19/10/2020,ZZH683686,4,82,Marwood Electrical Company Ltd,390000,"Works - Construction, Repair & Maintenance  ",Capital Expenditure - Works,#N/A,#N/A,"4,887.08",200304,C.01198.203
19/10/2020,ZZH683686,5,82,Marwood Electrical Company Ltd,390000,"Works - Construction, Repair & Maintenance  ",Capital Expenditure - Works,#N/A,#N/A,"13,554.27",200304,C.01198.203
19/10/2020,ZZH683686,6,82,Marwood Electrical Company Ltd,390000,"Works - Construction, Repair & Maintenance  ",Capital Expenditure - Works,#N/A,#N/A,"1,417.44",200304,C.01198.203
19/10/2020,ZZH683686,7,82,Marwood Electrical Company Ltd,390000,"Works - Construction, Repair & Maintenance  ",Capital Expenditure - Works,#N/A,#N/A,"18,274.62",200304,C.01198.203
19/10/2020,ZZH683686,8,82,Marwood Electrical Company Ltd,390000,"Works - Construction, Repair & Maintenance  ",Capital Expenditure - Works,#N/A,#N/A,301.23,200304,C.01198.203
19/10/2020,ZZH683686,9,82,Marwood Electrical Company Ltd,390000,"Works - Construction, Repair & Maintenance  ",Capital Expenditure - Works,#N/A,#N/A,"2,209.02",200304,C.01198.203
19/10/2020,ZZH683686,10,82,Marwood Electrical Company Ltd,390000,"Works - Construction, Repair & Maintenance  ",Capital Expenditure - Works,#N/A,#N/A,"2,108.61",200304,C.01198.203
19/10/2020,ZZH683686,11,82,Marwood Electrical Company Ltd,390000,"Works - Construction, Repair & Maintenance  ",Capital Expenditure - Works,#N/A,#N/A,"11,647.56",200304,C.01198.203
19/10/2020,ZZH683686,12,82,Marwood Electrical Company Ltd,390000,"Works - Construction, Repair & Maintenance  ",Capital Expenditure - Works,#N/A,#N/A,"1,004.10",200304,C.01198.203
19/10/2020,ZZH683686,13,82,Marwood Electrical Company Ltd,390000,"Works - Construction, Repair & Maintenance  ",Capital Expenditure - Works,#N/A,#N/A,"6,400.80",200304,C.01198.203
19/10/2020,ZZH683686,14,82,Marwood Electrical Company Ltd,390000,"Works - Construction, Repair & Maintenance  ",Capital Expenditure - Works,#N/A,#N/A,"11,068.05",200304,C.01198.203
19/10/2020,ZZH683686,15,82,Marwood Electrical Company Ltd,390000,"Works - Construction, Repair & Maintenance  ",Capital Expenditure - Works,#N/A,#N/A,"3,200.40",200304,C.01198.203
19/10/2020,ZZH683686,16,82,Marwood Electrical Company Ltd,390000,"Works - Construction, Repair & Maintenance  ",Capital Expenditure - Works,#N/A,#N/A,"2,380.14",200304,C.01198.203
19/10/2020,ZZH683686,17,82,Marwood Electrical Company Ltd,390000,"Works - Construction, Repair & Maintenance  ",Capital Expenditure - Works,#N/A,#N/A,"1,705.53",200304,C.01198.203
19/10/2020,ZZH683689,1,82,Marwood Electrical Company Ltd,390000,"Works - Construction, Repair & Maintenance  ",Capital Expenditure - Works,#N/A,#N/A,"12,561.01",200304,C.01220.203
19/10/2020,ZZH683689,2,82,Marwood Electrical Company Ltd,390000,"Works - Construction, Repair & Maintenance  ",Capital Expenditure - Works,#N/A,#N/A,"7,517.70",200304,C.01220.203
19/10/2020,ZZH683690,1,6967,Wilde Consultants Ltd,150000,Consultancy   ,Professional Fees,Services to Place,Network Assets Staff,"39,750.00",401007,11959
19/10/2020,ZZH683691,1,6967,Wilde Consultants Ltd,150000,Consultancy   ,Professional Fees,Services to Place,Network Assets Staff,"39,750.00",401007,11959
19/10/2020,ZZH683693,1,3529,Totally Local Company Ltd,390000,Supplies and services,Supplies and services,#N/A,#N/A,"24,354.83",401600,C.01421.203
19/10/2020,ZZH683694,1,3529,Totally Local Company Ltd,390000,Supplies and services,Supplies and services,#N/A,#N/A,"16,381.86",401600,C.00880.203
19/10/2020,ZZH683695,1,814,United Utilities/Diversiona,390000,Supplies and services,Supplies and services,#N/A,#N/A,"161,017.00",401600,C.00880.203
19/10/2020,ZZH683774,1,683,AECOM Limited,150000,Consultancy   ,Professional Fees,Services to Place,Design Frmwk Staff,"49,021.20",401020,11965
19/10/2020,ZZH683775,1,683,AECOM Limited,150000,Consultancy   ,Professional Fees,Services to Place,Design Frmwk Staff,"30,088.80",401020,11965
19/10/2020,ZZH683776,1,683,AECOM Limited,150000,Consultancy   ,Professional Fees,Services to Place,Design Frmwk Staff,"39,895.20",401020,11965
19/10/2020,ZZH683777,1,683,AECOM Limited,150000,Consultancy   ,Professional Fees,Services to Place,Design Frmwk Staff,"7,689.60",401020,11965
19/10/2020,ZZH683778,1,683,AECOM Limited,150000,Consultancy   ,Professional Fees,Services to Place,Design Frmwk Staff,"49,021.20",401020,11965
19/10/2020,ZZH683779,1,683,AECOM Limited,150000,Consultancy   ,Professional Fees,Services to Place,Design Frmwk Staff,"39,216.96",401020,11965
19/10/2020,ZZH683780,1,757,Transport for Greater Manchest,390000,"Works - Construction, Repair & Maintenance  ",Capital Expenditure - Works,#N/A,#N/A,"23,512.19",200304,C.01316.203
19/10/2020,ZZH683781,1,683,AECOM Limited,150000,Consultancy   ,Professional Fees,Services to Place,Design Frmwk Staff,"29,412.72",401020,11965
20/10/2020,ZZH683787,1,3529,Totally Local Company Ltd,240000,Horticultural  ,Grounds Maintenance,Services to People,P.E-Maint Play Field,"14,935.37",202030,10852
20/10/2020,ZZH683792,1,12008,HOME-START HOST,290000,Arts & Leisure Services  ,Publicity and Promotion,Services to People,EPEC Programme,"9,000.00",401801,13037
20/10/2020,ZZH683793,1,10750,LEB PARTNERSHIP,210000,Furniture & Soft Furnishings  ,Furniture and Equipment,Services to Place,Contin Educ Service,"7,512.00",400105,10511
20/10/2020,ZZH683793,2,10750,LEB PARTNERSHIP,210000,Furniture & Soft Furnishings  ,Furniture and Equipment,Services to Place,Contin Educ Service,"2,616.00",400105,10511
20/10/2020,ZZH683793,3,10750,LEB PARTNERSHIP,210000,Furniture & Soft Furnishings  ,Furniture and Equipment,Services to Place,Contin Educ Service,295.00,400105,10511
20/10/2020,ZZH683793,4,10750,LEB PARTNERSHIP,210000,Furniture & Soft Furnishings  ,Furniture and Equipment,Services to Place,Contin Educ Service,645.00,400105,10511
20/10/2020,ZZH683798,1,216,Manchester City Council,320000,Social Community Care Supplies & Services  ,Third party payments - Private/Voluntary Sector,Corporate and Support Services,Civil Resilience,"52,380.00",500530,11103
20/10/2020,ZZH683806,1,7025,CBRE Limited,150000,Consultancy   ,Professional Fees,Services to Place,Town deal Cheadle,"12,000.00",401020,13057
20/10/2020,ZZH683812,1,1669,Charnwood Nursery,261500,Human Resources Training & Conferences ,Fees and Charges,Services to People,SEN Independent Sch,"6,818.80",401024,10372
20/10/2020,ZZH683813,1,1669,Charnwood Nursery,261500,Human Resources Training & Conferences ,Fees and Charges,Services to People,SEN Independent Sch,"6,818.80",401024,10372
20/10/2020,ZZH683818,1,1669,Charnwood Nursery,261500,Human Resources Training & Conferences ,Fees and Charges,Services to People,SEN Independent Sch,"6,818.80",401024,10372
20/10/2020,ZZH683819,1,1669,Charnwood Nursery,261500,Human Resources Training & Conferences ,Fees and Charges,Services to People,SEN Independent Sch,"6,818.80",401024,10372
20/10/2020,ZZH683822,1,1669,Charnwood Nursery,261500,Human Resources Training & Conferences ,Fees and Charges,Services to People,SEN Independent Sch,"8,302.98",401024,10372
20/10/2020,ZZH683823,1,1669,Charnwood Nursery,261500,Human Resources Training & Conferences ,Fees and Charges,Services to People,SEN Independent Sch,"8,302.98",401024,10372
20/10/2020,ZZH683824,1,1669,Charnwood Nursery,261500,Human Resources Training & Conferences ,Fees and Charges,Services to People,SEN Independent Sch,"8,302.98",401024,10372
20/10/2020,ZZH683825,1,1669,Charnwood Nursery,261500,Human Resources Training & Conferences ,Fees and Charges,Services to People,SEN Independent Sch,"8,302.98",401024,10372
20/10/2020,ZZH683826,1,1669,Charnwood Nursery,261500,Human Resources Training & Conferences ,Fees and Charges,Services to People,SEN Independent Sch,"8,302.98",401024,10372
20/10/2020,ZZH683827,1,1669,Charnwood Nursery,261500,Human Resources Training & Conferences ,Fees and Charges,Services to People,SEN Independent Sch,"8,302.98",401024,10372
20/10/2020,ZZH683828,1,1669,Charnwood Nursery,261500,Human Resources Training & Conferences ,Fees and Charges,Services to People,SEN Independent Sch,"8,302.98",401024,10372
20/10/2020,ZZH683829,1,1669,Charnwood Nursery,261500,Human Resources Training & Conferences ,Fees and Charges,Services to People,SEN Independent Sch,"8,302.98",401024,10372
20/10/2020,ZZH683830,1,1669,Charnwood Nursery,261500,Human Resources Training & Conferences ,Fees and Charges,Services to People,SEN Independent Sch,"8,302.98",401024,10372
20/10/2020,ZZH683831,1,1669,Charnwood Nursery,261500,Human Resources Training & Conferences ,Fees and Charges,Services to People,SEN Independent Sch,"8,302.98",401024,10372
20/10/2020,ZZH683832,1,1669,Charnwood Nursery,261500,Human Resources Training & Conferences ,Fees and Charges,Services to People,SEN Independent Sch,"8,302.98",401024,10372
20/10/2020,ZZH683833,1,1669,Charnwood Nursery,261500,Human Resources Training & Conferences ,Fees and Charges,Services to People,SEN Independent Sch,"8,302.98",401024,10372
20/10/2020,ZZH683834,1,1669,Charnwood Nursery,261500,Human Resources Training & Conferences ,Fees and Charges,Services to People,SEN Independent Sch,"8,302.98",401024,10372
20/10/2020,ZZH683835,1,1669,Charnwood Nursery,261500,Human Resources Training & Conferences ,Fees and Charges,Services to People,SEN Independent Sch,"8,302.98",401024,10372
20/10/2020,ZZH683836,1,1669,Charnwood Nursery,261500,Human Resources Training & Conferences ,Fees and Charges,Services to People,SEN Independent Sch,"8,302.98",401024,10372
20/10/2020,ZZH683837,1,1669,Charnwood Nursery,261500,Human Resources Training & Conferences ,Fees and Charges,Services to People,SEN Independent Sch,"6,818.80",401024,10372
20/10/2020,ZZH683838,1,1669,Charnwood Nursery,261500,Human Resources Training & Conferences ,Fees and Charges,Services to People,SEN Independent Sch,"6,818.80",401024,10372
20/10/2020,ZZH683839,1,1669,Charnwood Nursery,261500,Human Resources Training & Conferences ,Fees and Charges,Services to People,SEN Independent Sch,"6,818.80",401024,10372
20/10/2020,ZZH683840,1,1669,Charnwood Nursery,261500,Human Resources Training & Conferences ,Fees and Charges,Services to People,SEN Independent Sch,"6,818.80",401024,10372
20/10/2020,ZZH683841,1,1669,Charnwood Nursery,261500,Human Resources Training & Conferences ,Fees and Charges,Services to People,SEN Independent Sch,"6,818.80",401024,10372
20/10/2020,ZZH683842,1,1669,Charnwood Nursery,261500,Human Resources Training & Conferences ,Fees and Charges,Services to People,SEN Independent Sch,"6,818.80",401024,10372
20/10/2020,ZZH683844,1,1669,Charnwood Nursery,261500,Human Resources Training & Conferences ,Fees and Charges,Services to People,SEN Independent Sch,"6,818.80",401024,10372
21/10/2020,ZZH683894,1,6117,QA Research,150000,Consultancy   ,Professional Fees,Services to People,General Overheads,"8,446.60",401007,12726
21/10/2020,ZZH683928,1,3154,Deloitte MCS Ltd,150000,Consultancy   ,Professional Fees,Services to Place,MDC Mayoral DC,"49,750.00",401007,13033
22/10/2020,ZZH683978,1,13495,Pell Frischmann Consultants Lt,150000,Consultancy   ,Professional Fees,Services to Place,Invest in Growth,"27,600.99",401007,10091
22/10/2020,ZZH683979,1,3529,Totally Local Company Ltd,390000,"Works - Construction, Repair & Maintenance  ",Capital Expenditure - Works,#N/A,#N/A,"10,642.30",200304,C.01304.203
22/10/2020,ZZH683980,1,11996,Kelly Mattison - Facilitator,150000,Consultancy   ,Professional Fees,Services to People,CADA grant,"10,000.00",401020,13032
22/10/2020,ZZH683985,1,7025,CBRE Limited,150000,Consultancy   ,Professional Fees,Services to Place,Merseyway Shop Ctre,"75,000.00",401020,12866
22/10/2020,ZZH683988,1,6568,CROSSROADS CARING FOR CARERS,320000,Social Community Care Supplies & Services  ,Care Payments,Services to People,DP - Respite,"11,088.00",530335,11513
26/10/2020,ZZH684064,1,1816,Seashell Trust,150000,Consultancy   ,Professional Fees,Services to People,PH-Local Pilot,"25,003.04",401020,13047
26/10/2020,ZZH684070,1,9301,STOCKPORT REFUGEE SUPPORT GROU,390000,Supplies and services,Supplies and services,Services to People,PH-Health Protection,"9,136.00",401600,12739
26/10/2020,ZZH684094,1,82,Marwood Electrical Company Ltd,390000,"Works - Construction, Repair & Maintenance  ",Capital Expenditure - Works,#N/A,#N/A,"5,055.60",200304,C.01198.203
26/10/2020,ZZH684094,2,82,Marwood Electrical Company Ltd,390000,"Works - Construction, Repair & Maintenance  ",Capital Expenditure - Works,#N/A,#N/A,"2,008.20",200304,C.01198.203
26/10/2020,ZZH684094,3,82,Marwood Electrical Company Ltd,390000,"Works - Construction, Repair & Maintenance  ",Capital Expenditure - Works,#N/A,#N/A,"2,008.20",200304,C.01198.203
26/10/2020,ZZH684095,1,6967,Wilde Consultants Ltd,150000,Consultancy   ,Professional Fees,#N/A,#N/A,"11,466.00",401007,C.01356.202
27/10/2020,ZZH684113,1,12193,Greater Manchester Combined Au,#N/A,#N/A,#N/A,Services to People,COVID-19,"60,000.00",400608,12926
28/10/2020,ZZH684151,1,3763,IDOX Software Ltd,270000,Information Communication Technology  ,Information and Communications Technology,Services to Place,Planning,"8,075.00",402001,12150
28/10/2020,ZZH684153,1,11715,CBRE,150000,Consultancy   ,Professional Fees,Services to Place,Redrock IE,"43,108.50",401020,12062
28/10/2020,ZZH684153,2,11715,CBRE,150000,Consultancy   ,Professional Fees,Services to Place,Redrock IE,"9,112.00",401020,12062
28/10/2020,ZZH684173,1,2816,The Fostering Network,150000,Consultancy   ,Professional Fees,Services to People,FP - Fostering Staff,"7,000.00",401020,11489
28/10/2020,ZZH684174,1,14243,Keys PCE Ltd,261500,Human Resources Training & Conferences ,Fees and Charges,Services to People,SEN Independent Sch,"21,840.00",401024,10372
28/10/2020,ZZH684175,1,14243,Keys PCE Ltd,261500,Human Resources Training & Conferences ,Fees and Charges,Services to People,SEN Independent Sch,"23,546.25",401024,10372
28/10/2020,ZZH684176,1,11568,The Birches School,170000,Education  ,Third party payments - Public Sector,Services to People,OLA pupils,"8,200.00",500304,10371
28/10/2020,ZZH684177,1,11568,The Birches School,170000,Education  ,Third party payments - Public Sector,Services to People,OLA pupils,"9,300.00",500304,10371
29/10/2020,ZZH684183,1,1222,Horticon Ltd,240000,Horticultural  ,Grounds Maintenance,#N/A,#N/A,"8,000.00",202032,C.10775
29/10/2020,ZZH684184,1,7802,Craemer UK Ltd,182020,Environmental Services Waste Management,Waste Management Equipment,Services to Place,Wheelie Bins,"9,628.50",400401,10864
29/10/2020,ZZH684184,2,7802,Craemer UK Ltd,182020,Environmental Services Waste Management,Waste Management Equipment,Services to Place,Wheelie Bins,"7,140.00",400401,10864
29/10/2020,ZZH684185,1,3529,Totally Local Company Ltd,240000,Horticultural  ,Grounds Maintenance,#N/A,#N/A,"5,930.00",202032,C.10775
30/10/2020,ZZH684210,1,14196,Grassroots Recruitment Ltd,#N/A,#N/A,#N/A,Services to Place,Employment Initiativ,"6,490.00",400999,12775
30/10/2020,ZZH684227,1,5214,WSP GROUP PLC,150000,Consultancy   ,Professional Fees,Services to Place,Design Frmwk Staff,"42,765.31",401020,11965
02/11/2020,ZZH684260,1,2927,XMA Ltd,270000,Information Communication Technology  ,Information and Communications Technology,Corporate and Support Services,IT Main,"5,492.25",402001,11073
02/11/2020,ZZH684260,2,2927,XMA Ltd,270000,Information Communication Technology  ,Information and Communications Technology,Corporate and Support Services,IT Main,31.50,402001,11073
02/11/2020,ZZH684260,3,2927,XMA Ltd,270000,Information Communication Technology  ,Information and Communications Technology,Corporate and Support Services,IT Main,31.50,402001,11073
02/11/2020,ZZH684260,4,2927,XMA Ltd,270000,Information Communication Technology  ,Information and Communications Technology,Corporate and Support Services,IT Main,109.98,402001,11073
02/11/2020,ZZH684285,1,147,Killgerm Chemicals Ltd,181800,Environmental Services Technical Equipment ,Furniture and Equipment,Services to Place,Pest Control,"7,800.00",400110,10897
02/11/2020,ZZH684285,2,147,Killgerm Chemicals Ltd,181800,Environmental Services Technical Equipment ,Furniture and Equipment,Services to Place,Pest Control,50.90,400110,10897
02/11/2020,ZZH684285,3,147,Killgerm Chemicals Ltd,181800,Environmental Services Technical Equipment ,Furniture and Equipment,Services to Place,Pest Control,169.30,400110,10897
02/11/2020,ZZH684285,4,147,Killgerm Chemicals Ltd,181800,Environmental Services Technical Equipment ,Furniture and Equipment,Services to Place,Pest Control,241.80,400110,10897
02/11/2020,ZZH684291,1,2927,XMA Ltd,270000,Information Communication Technology  ,Information and Communications Technology,Services to People,AOM costs,"5,275.04",402001,11878
02/11/2020,ZZH684291,2,2927,XMA Ltd,270000,Information Communication Technology  ,Information and Communications Technology,Services to People,AOM costs,28.00,402001,11878
02/11/2020,ZZH684291,3,2927,XMA Ltd,270000,Information Communication Technology  ,Information and Communications Technology,Services to People,AOM costs,28.00,402001,11878
02/11/2020,ZZH684291,4,2927,XMA Ltd,270000,Information Communication Technology  ,Information and Communications Technology,Services to People,AOM costs,97.76,402001,11878
02/11/2020,ZZH684291,5,2927,XMA Ltd,270000,Information Communication Technology  ,Information and Communications Technology,Services to People,AOM costs,135.52,402001,11878
02/11/2020,ZZH684291,6,2927,XMA Ltd,270000,Information Communication Technology  ,Information and Communications Technology,Services to People,AOM costs,17.46,402001,11878
02/11/2020,ZZH684294,1,1722,The Together Trust Centre,320000,Social Community Care Supplies & Services  ,Care Payments,Services to People,DP - Respite,"10,997.75",530358,11513
03/11/2020,ZZH684309,1,3529,Totally Local Company Ltd,391114,"Works - Construction, Repair & Maintenance Buildings Surveys",Capital Expenditure - Fees,#N/A,#N/A,"17,677.15",200316,C.01271.202
03/11/2020,ZZH684312,1,9894,TLT LLP,390000,Supplies and services,Supplies and services,#N/A,#N/A,"30,000.00",401600,C.00718.203
03/11/2020,ZZH684332,1,2927,XMA Ltd,270000,Information Communication Technology  ,Information and Communications Technology,Services to People,PTG Troubled Familie,35.00,402001,10148
03/11/2020,ZZH684332,2,2927,XMA Ltd,270000,Information Communication Technology  ,Information and Communications Technology,Services to People,PTG Troubled Familie,35.00,402001,10148
03/11/2020,ZZH684332,3,2927,XMA Ltd,270000,Information Communication Technology  ,Information and Communications Technology,Services to People,PTG Troubled Familie,"8,960.70",402001,10148
03/11/2020,ZZH684358,1,13124,Social Finance Limited,150000,Consultancy   ,Professional Fees,Corporate and Support Services,Business Intelligenc,"49,700.00",401007,11872
04/11/2020,ZZH684385,1,14243,Keys PCE Ltd,261500,Human Resources Training & Conferences ,Fees and Charges,Services to People,SEN Independent Sch,"21,840.00",401024,10372
04/11/2020,ZZH684386,1,1722,The Together Trust Centre,261500,Human Resources Training & Conferences ,Fees and Charges,Services to People,SEN Independent Sch,"14,681.47",401024,10372
04/11/2020,ZZH684391,1,4369,Pennine Care NHS Trust,999999,Social Community Care Supplies & Services  ,Service Contract Payments,Services to People,PH-Drug & Alcohol,"33,265.00",561704,12731
04/11/2020,ZZH684408,1,12237,"CGL (Change, Grow, Live)",310000,Healthcare  ,Third party payments - Public Sector,Services to People,PH-Drug & Alcohol,"115,748.00",500402,12731
04/11/2020,ZZH684411,1,13860,Howard Lynn Property Ltd,261400,Human Resources Temporary & Agency Staff ,Agency Staff,Services to Place,Property Client Acct,"6,941.21",100290,12328
04/11/2020,ZZH684423,1,757,Transport for Greater Manchest,390000,"Works - Construction, Repair & Maintenance  ",Capital Expenditure - Works,#N/A,#N/A,"9,579.34",200304,C.01304.203
05/11/2020,ZZH684439,1,11728,OCS Group UK Limited,320000,Social Community Care Supplies & Services  ,Third party payments - Private/Voluntary Sector,Services to Place,Stopford Hse CP,"6,376.50",500805,10058
05/11/2020,ZZH684456,1,1694,Network Rail Infras'ture Ltd,150000,Consultancy   ,Professional Fees,Services to Place,Town deal Cheadle,"7,508.00",401007,13057
05/11/2020,ZZH684462,1,6116,Atkins Limited,150000,Consultancy   ,Professional Fees,Services to Place,Design Frmwk Staff,"41,328.00",401020,11965
05/11/2020,ZZH684463,1,6116,Atkins Limited,150000,Consultancy   ,Professional Fees,Services to Place,Design Frmwk Staff,"24,230.88",401020,11965
05/11/2020,ZZH684464,1,6116,Atkins Limited,150000,Consultancy   ,Professional Fees,Services to Place,Design Frmwk Staff,"23,760.00",401020,11965
05/11/2020,ZZH684465,1,6116,Atkins Limited,150000,Consultancy   ,Professional Fees,Services to Place,Design Frmwk Staff,"34,560.00",401020,11965
05/11/2020,ZZH684466,1,6116,Atkins Limited,150000,Consultancy   ,Professional Fees,Services to Place,Design Frmwk Staff,"36,480.00",401020,11965
05/11/2020,ZZH684474,1,13998,Lucid Outdoor Limited,181800,Environmental Services Technical Equipment ,Furniture and Equipment,#N/A,#N/A,"7,478.83",400110,C.10941
06/11/2020,ZZH684482,1,2927,XMA Ltd,270000,Information Communication Technology  ,Information and Communications Technology,Corporate and Support Services,IT Traded (TLC),"11,037.00",402001,11338
06/11/2020,ZZH684482,2,2927,XMA Ltd,270000,Information Communication Technology  ,Information and Communications Technology,Corporate and Support Services,IT Traded (TLC),70.00,402001,11338
06/11/2020,ZZH684482,3,2927,XMA Ltd,270000,Information Communication Technology  ,Information and Communications Technology,Corporate and Support Services,IT Traded (TLC),70.00,402001,11338
06/11/2020,ZZH684482,4,2927,XMA Ltd,270000,Information Communication Technology  ,Information and Communications Technology,Corporate and Support Services,IT Traded (TLC),122.20,402001,11338
06/11/2020,ZZH684482,5,2927,XMA Ltd,270000,Information Communication Technology  ,Information and Communications Technology,Corporate and Support Services,IT Traded (TLC),400.00,402001,11338
06/11/2020,ZZH684482,6,2927,XMA Ltd,270000,Information Communication Technology  ,Information and Communications Technology,Corporate and Support Services,IT Traded (TLC),349.20,402001,11338
06/11/2020,ZZH684520,1,9453,Gaist Solutions Ltd,390000,"Works - Construction, Repair & Maintenance  ",Capital Expenditure - Works,#N/A,#N/A,"7,875.00",200304,C.01202.201
06/11/2020,ZZH684521,1,9453,Gaist Solutions Ltd,390000,"Works - Construction, Repair & Maintenance  ",Capital Expenditure - Works,#N/A,#N/A,"29,250.00",200304,C.00614.203
06/11/2020,ZZH684526,1,3188,NEC Software Solutions UK Ltd,390000,"Works - Construction, Repair & Maintenance  ",Fees and Charges,Corporate and Support Services,Driver Assessment,"12,000.00",401017,11113
09/11/2020,ZZH684537,1,12269,PENARTH GROUP,261500,Human Resources Training & Conferences ,Fees and Charges,Services to People,SEN Independent Sch,"17,733.33",401024,10372
09/11/2020,ZZH684540,1,12182,Ladybird Childcare Brinnington,261500,Human Resources Training & Conferences ,Fees and Charges,Services to People,Early Years SEN,"7,303.60",401024,12942
09/11/2020,ZZH684566,1,8791,Lightspeed Systems(Europe) Ltd,270000,Information Communication Technology  ,Information and Communications Technology,Corporate and Support Services,IT School,"35,750.00",402010,11418
09/11/2020,ZZH684578,1,1722,The Together Trust Centre,261500,Human Resources Training & Conferences ,Fees and Charges,Services to People,SEN Independent Sch,"39,451.02",401024,10372
09/11/2020,ZZH684579,1,1722,The Together Trust Centre,261500,Human Resources Training & Conferences ,Fees and Charges,Services to People,SEN Independent Sch,"44,045.01",401024,10372
09/11/2020,ZZH684588,1,3529,Totally Local Company Ltd,390000,Supplies and services,Supplies and services,#N/A,#N/A,"55,573.43",401600,C.01316.203
09/11/2020,ZZH684592,1,3529,Totally Local Company Ltd,181800,Environmental Services Technical Equipment ,Furniture and Equipment,#N/A,#N/A,"5,200.00",400110,C.01190.203
10/11/2020,ZZH684634,1,1722,The Together Trust Centre,261500,Human Resources Training & Conferences ,Fees and Charges,Services to People,SEN Independent Sch,"44,045.01",401024,10372
10/11/2020,ZZH684635,1,1722,The Together Trust Centre,261500,Human Resources Training & Conferences ,Fees and Charges,Services to People,SEN Independent Sch,"26,000.00",401024,10372
10/11/2020,ZZH684636,1,1722,The Together Trust Centre,261500,Human Resources Training & Conferences ,Fees and Charges,Services to People,SEN Independent Sch,"28,000.00",401024,10372
10/11/2020,ZZH684678,1,14414,MEADOWS CARE LTD,261500,Human Resources Training & Conferences ,Fees and Charges,Services to People,SEN Independent Sch,"26,410.00",401024,10372
10/11/2020,ZZH684681,1,3529,Totally Local Company Ltd,390000,Supplies and services,Supplies and services,#N/A,#N/A,"8,579.32",401600,C.01373.203
11/11/2020,ZZH684695,1,2927,XMA Ltd,270000,Information Communication Technology  ,Information and Communications Technology,Services to People,INT TV Staffing,"5,518.50",402001,12899
11/11/2020,ZZH684695,2,2927,XMA Ltd,270000,Information Communication Technology  ,Information and Communications Technology,Services to People,INT TV Staffing,35.00,402001,12899
11/11/2020,ZZH684695,3,2927,XMA Ltd,270000,Information Communication Technology  ,Information and Communications Technology,Services to People,INT TV Staffing,35.00,402001,12899
11/11/2020,ZZH684695,4,2927,XMA Ltd,270000,Information Communication Technology  ,Information and Communications Technology,Services to People,INT TV Staffing,122.20,402001,12899
11/11/2020,ZZH684700,1,12269,PENARTH GROUP,261500,Human Resources Training & Conferences ,Fees and Charges,Services to People,SEN Independent Sch,"17,416.00",401024,10372
11/11/2020,ZZH684701,1,12269,PENARTH GROUP,261500,Human Resources Training & Conferences ,Fees and Charges,Services to People,SEN Independent Sch,"17,333.00",401024,10372
11/11/2020,ZZH684718,1,14011,Baltimore Consulting,260000,Human Resources  ,Other Payments,Services to People,Heads of Service,"8,601.15",100304,11590
11/11/2020,ZZH684726,1,628,Life Leisure,210000,Furniture & Soft Furnishings  ,Furniture and Equipment,Services to Place,Sports Client,"7,200.00",400115,11309
11/11/2020,ZZH684728,1,13890,Elaine Cross Psychology Ltd,260000,Human Resources  ,Staff Training,Services to People,FP - Fostering Staff,"5,200.00",102020,11489
12/11/2020,ZZH684743,1,14421,PSD Limited,261300,Human Resources Recruitment & Assessment ,Advertising,Services to Place,Directorate,"5,000.00",102040,10106
12/11/2020,ZZH684744,2,14421,PSD Limited,261300,Human Resources Recruitment & Assessment ,Advertising,Services to Place,Directorate,"5,000.00",102040,10106
12/11/2020,ZZH684774,1,4272,Civica UK Ltd,390000,Supplies and services,Supplies and services,Corporate and Support Services,Bentax,"67,468.00",401600,11139
12/11/2020,ZZH684775,1,4625,SAP (UK) Ltd,270000,Information Communication Technology  ,Information and Communications Technology,Corporate and Support Services,I.T Business Relat,"68,698.60",402002,13044
12/11/2020,ZZH684797,1,7820,GMCA - GMUTC,390000,Supplies and services,Supplies and services,#N/A,#N/A,"24,000.00",401600,C.01273.203
12/11/2020,ZZH684802,1,14298,Lagan's Foundation,320000,Social Community Care Supplies & Services  ,Care Payments,Services to People,DP - Respite,"19,602.00",530335,11513
13/11/2020,ZZH684809,1,1799,Stockport Homes,999999,Fees and Charges,Fees and Charges,Services to People,CYP PH Contracts,"5,000.00",401035,13034
16/11/2020,ZZH684832,1,1339,Stockport NHS Foundation Trust,310000,Healthcare  ,Third party payments - Public Sector,Services to People,SEN Specific support,"28,518.00",500402,10300
16/11/2020,ZZH684835,1,10630,Carebase,181800,Environmental Services Technical Equipment ,Furniture and Equipment,Services to People,SEN Equipment,"5,881.00",400110,10324
16/11/2020,ZZH684835,2,10630,Carebase,181800,Environmental Services Technical Equipment ,Furniture and Equipment,Services to People,SEN Equipment,395.00,400110,10324
16/11/2020,ZZH684836,1,1339,Stockport NHS Foundation Trust,310000,Healthcare  ,Third party payments - Public Sector,Services to People,EHP Children Ctrs Ce,"180,000.00",500401,10122
17/11/2020,ZZH684887,1,1339,Stockport NHS Foundation Trust,310000,Healthcare  ,Third party payments - Public Sector,Services to People,SEN Specific support,"16,230.00",500402,10300
17/11/2020,ZZH684887,2,1339,Stockport NHS Foundation Trust,310000,Healthcare  ,Third party payments - Public Sector,Services to People,SEN Specific support,"6,590.00",500402,10300
17/11/2020,ZZH684904,1,3529,Totally Local Company Ltd,240000,Horticultural  ,Grounds Maintenance,#N/A,#N/A,"12,991.50",202033,C.01429.203
17/11/2020,ZZH684908,1,5214,WSP GROUP PLC,150000,Consultancy   ,Professional Fees,#N/A,#N/A,"35,780.00",401007,C.01417.201
17/11/2020,ZZH684909,1,5214,WSP GROUP PLC,150000,Consultancy   ,Professional Fees,#N/A,#N/A,"33,000.00",401007,C.01417.201
18/11/2020,ZZH684946,1,12263,Ashgate Specialist Support Pri,170000,Education  ,Third party payments - Public Sector,Services to People,OLA pupils,"8,236.00",500304,10371
18/11/2020,ZZH684966,1,14437,Impression Ltd,#N/A,#N/A,#N/A,Corporate and Support Services,Public Libraries Gen,"10,605.00",400999,11329
18/11/2020,ZZH684968,1,1339,Stockport NHS Foundation Trust,999999,Fees and Charges,Fees and Charges,Services to People,EHP Early Interventn,"106,837.00",402404,12600
18/11/2020,ZZH684989,1,6116,Atkins Limited,150000,Consultancy   ,Professional Fees,Services to Place,Feasibility,"9,123.84",401020,13062
19/11/2020,ZZH684998,1,5131,FUTURE DESIGN CONSULTANTS,#N/A,#N/A,#N/A,Services to Place,Investing in Growth,"75,000.00",400999,10102
19/11/2020,ZZH685008,1,3763,IDOX Software Ltd,270000,Information Communication Technology  ,Information and Communications Technology,Services to Place,Planning,"5,700.00",402001,12150
19/11/2020,ZZH685027,1,12269,PENARTH GROUP,261500,Human Resources Training & Conferences ,Fees and Charges,Services to People,SEN Independent Sch,"28,000.00",401024,10372
20/11/2020,ZZH685050,1,11466,High Peak School Ltd,261500,Human Resources Training & Conferences ,Fees and Charges,Services to People,SEN Independent Sch,"26,400.00",401024,10372
20/11/2020,ZZH685054,1,7025,CBRE Limited,150000,Consultancy   ,Professional Fees,Services to Place,MDC Mayoral DC,"6,500.00",401007,13033
20/11/2020,ZZH685098,1,13541,PRP Architects LLP.,150000,Consultancy   ,Professional Fees,#N/A,#N/A,"10,525.00",401007,C.11440
20/11/2020,ZZH685104,1,9453,Gaist Solutions Ltd,390000,"Works - Construction, Repair & Maintenance  ",Capital Expenditure - Works,#N/A,#N/A,"21,105.00",200304,C.00614.203
20/11/2020,ZZH685110,1,6748,GEORGE COX & SONS LTD,#N/A,#N/A,#N/A,Services to Place,Rechargeable work,"18,149.00",400999,11961
22/11/2020,ZZH685116,1,13116,Mazars LLP,201100,Financial Services Audit ,Professional Fees,Corporate and Support Services,U-Misc Fin-Corp Mang,"97,119.00",401003,10971
23/11/2020,ZZH685160,1,5835,Virgin Media Access Network Pl,230000,Highway Equipment & Materials�   ,Highways Maintenance,#N/A,#N/A,"7,067.81",202055,C.01272.202
24/11/2020,ZZH685196,1,2927,XMA Ltd,270000,Information Communication Technology  ,Information and Communications Technology,Services to People,WD-Staff Dev-Grants,"5,518.50",402001,12202
24/11/2020,ZZH685196,2,2927,XMA Ltd,270000,Information Communication Technology  ,Information and Communications Technology,Services to People,WD-Staff Dev-Grants,35.00,402001,12202
24/11/2020,ZZH685196,3,2927,XMA Ltd,270000,Information Communication Technology  ,Information and Communications Technology,Services to People,WD-Staff Dev-Grants,35.00,402001,12202
24/11/2020,ZZH685196,4,2927,XMA Ltd,270000,Information Communication Technology  ,Information and Communications Technology,Services to People,WD-Staff Dev-Grants,122.20,402001,12202
24/11/2020,ZZH685203,1,9453,Gaist Solutions Ltd,390000,"Works - Construction, Repair & Maintenance  ",Repairs and Maintenance,Services to Place,Passages Rail & Marr,"23,400.00",200123,11998
25/11/2020,ZZH685229,1,3529,Totally Local Company Ltd,192200,Facilities & Management Services Security ,Security,Services to Place,Redrock IE,"4,128.00",201204,12062
25/11/2020,ZZH685229,2,3529,Totally Local Company Ltd,192200,Facilities & Management Services Security ,Security,Services to Place,CCTV-Control,"12,806.40",201204,12822
25/11/2020,ZZH685250,1,9612,Capita Property & Infrastructu,#N/A,#N/A,#N/A,Services to Place,Planning,"20,000.00",100999,12150
25/11/2020,ZZH685267,1,5767,KINGKRAFT LTD,181800,Environmental Services Technical Equipment ,Furniture and Equipment,Services to People,SEN Equipment,"4,895.00",400110,10324
25/11/2020,ZZH685267,2,5767,KINGKRAFT LTD,181800,Environmental Services Technical Equipment ,Furniture and Equipment,Services to People,SEN Equipment,250.00,400110,10324
25/11/2020,ZZH685269,1,1816,Seashell Trust,261500,Human Resources Training & Conferences ,Fees and Charges,Services to People,SEN NMSS School Fees,"16,849.00",401024,12710
25/11/2020,ZZH685273,1,13808,Progress to Excellence Group,261500,Human Resources Training & Conferences ,Fees and Charges,Services to People,SEN Independent Sch,"12,400.00",401024,10372
26/11/2020,ZZH685293,1,12684,Looking Local,270000,Information Communication Technology  ,Information and Communications Technology,Corporate and Support Services,I.T Business Relat,"22,000.00",402010,13044
26/11/2020,ZZH685301,1,11715,CBRE,150000,Consultancy   ,Professional Fees,Services to Place,Merseyway Shop Ctre,"5,000.00",401020,12866
26/11/2020,ZZH685301,2,11715,CBRE,150000,Consultancy   ,Professional Fees,Services to Place,Merseyway Shop Ctre,"5,000.00",401020,12866
26/11/2020,ZZH685301,3,11715,CBRE,150000,Consultancy   ,Professional Fees,Services to Place,Merseyway Shop Ctre,"12,100.00",401020,12866
26/11/2020,ZZH685301,4,11715,CBRE,150000,Consultancy   ,Professional Fees,Services to Place,Merseyway Shop Ctre,"3,000.00",401020,12866
26/11/2020,ZZH685301,5,11715,CBRE,150000,Consultancy   ,Professional Fees,Services to Place,Merseyway Shop Ctre,"3,000.00",401020,12866
26/11/2020,ZZH685301,6,11715,CBRE,150000,Consultancy   ,Professional Fees,Services to Place,Merseyway Shop Ctre,"3,000.00",401020,12866
26/11/2020,ZZH685301,7,11715,CBRE,150000,Consultancy   ,Professional Fees,Services to Place,Merseyway Shop Ctre,"5,000.00",401020,12866
26/11/2020,ZZH685301,8,11715,CBRE,150000,Consultancy   ,Professional Fees,Services to Place,Merseyway Shop Ctre,"5,000.00",401020,12866
26/11/2020,ZZH685301,9,11715,CBRE,150000,Consultancy   ,Professional Fees,Services to Place,Merseyway Shop Ctre,"3,000.00",401020,12866
26/11/2020,ZZH685301,10,11715,CBRE,150000,Consultancy   ,Professional Fees,Services to Place,Merseyway Shop Ctre,"5,000.00",401020,12866
26/11/2020,ZZH685301,11,11715,CBRE,150000,Consultancy   ,Professional Fees,Services to Place,Merseyway Shop Ctre,"3,000.00",401020,12866
26/11/2020,ZZH685301,12,11715,CBRE,150000,Consultancy   ,Professional Fees,Services to Place,Merseyway Shop Ctre,"3,000.00",401020,12866
26/11/2020,ZZH685301,13,11715,CBRE,150000,Consultancy   ,Professional Fees,Services to Place,Merseyway Shop Ctre,"5,250.00",401020,12866
27/11/2020,ZZH685336,1,3529,Totally Local Company Ltd,390000,Supplies and services,Supplies and services,Services to Place,Emergency Tree Works,"6,187.00",401600,11168
27/11/2020,ZZH685340,1,909,DWF LLP,280000,Legal Services  ,Legal Fees,Corporate and Support Services,Legal Fees Budget,"5,600.00",401016,12271
27/11/2020,ZZH685342,1,13081,Laura Harris,#N/A,#N/A,#N/A,Services to People,FP - Fostering Staff,"8,000.00",100999,11489
27/11/2020,ZZH685344,1,3540,Sunrise Medical Ltd,181800,Environmental Services Technical Equipment ,Furniture and Equipment,Services to People,SEN Equipment,"6,122.80",400110,10324
27/11/2020,ZZH685348,1,223,Groundwork Landscapes Ltd,240000,Horticultural  ,Grounds Maintenance,#N/A,#N/A,"7,635.00",202032,C.10775
27/11/2020,ZZH685349,1,223,Groundwork Landscapes Ltd,240000,Horticultural  ,Grounds Maintenance,#N/A,#N/A,"15,219.50",202032,C.10775
27/11/2020,ZZH685350,1,223,Groundwork Landscapes Ltd,240000,Horticultural  ,Grounds Maintenance,#N/A,#N/A,"20,380.00",202032,C.10775
27/11/2020,ZZH685351,1,223,Groundwork Landscapes Ltd,240000,Horticultural  ,Grounds Maintenance,#N/A,#N/A,"23,982.10",202032,C.10775
27/11/2020,ZZH685352,1,534,Kompan Ltd,240000,Horticultural  ,Grounds Maintenance,#N/A,#N/A,"78,968.85",202032,C.10775
27/11/2020,ZZH685371,1,628,Life Leisure,999999,Fees and Charges,Fees and Charges,Services to People,SS-SSCO Partnership,"6,103.26",402404,10716
27/11/2020,ZZH685381,1,13445,All Pump Solutions,230000,Highway Equipment & Materials�   ,Highways Maintenance,Services to Place,A6 Marr Maintenance,"5,025.00",202050,13039
30/11/2020,ZZH685404,1,10105,Mastercall Healthcare,320000,Social Community Care Supplies & Services  ,Third party payments - Private/Voluntary Sector,Services to People,Winter Pressures,"101,359.00",402403,12935
01/12/2020,ZZH685413,1,450,Leeds City Council,320000,Social Community Care Supplies & Services  ,Care Payments,Services to People,EP - Residential,"78,000.00",530351,11449
01/12/2020,ZZH685414,1,8423,SMS Coaching Limited,261500,Human Resources Training & Conferences ,Fees and Charges,Services to People,SEN Independent Sch,"26,000.00",401024,10372
01/12/2020,ZZH685417,1,12188,ST JOHN VIANNEY,261500,Human Resources Training & Conferences ,Fees and Charges,Services to People,SEN NMSS School Fees,"11,500.00",401024,12710
01/12/2020,ZZH685418,1,12188,ST JOHN VIANNEY,261500,Human Resources Training & Conferences ,Fees and Charges,Services to People,SEN NMSS School Fees,"11,500.00",401024,12710
01/12/2020,ZZH685419,1,12188,ST JOHN VIANNEY,261500,Human Resources Training & Conferences ,Fees and Charges,Services to People,SEN NMSS School Fees,"11,500.00",401024,12710
01/12/2020,ZZH685431,1,9862,Jacobs Consulting Engineers,150000,Consultancy   ,Professional Fees,Services to Place,Invest in Growth,"9,967.00",401007,10091
01/12/2020,ZZH685433,1,6116,Atkins Limited,200000,Financial Services  ,Fees and Charges,Services to Place,Highways-Network Man,"44,366.40",401202,11968
01/12/2020,ZZH685435,1,3529,Totally Local Company Ltd,390000,Supplies and services,Supplies and services,#N/A,#N/A,"11,942.80",401600,C.01387.203
01/12/2020,ZZH685436,1,8759,VAISALA  LTD,390000,"Works - Construction, Repair & Maintenance  ",Capital Expenditure - Works,#N/A,#N/A,"5,869.00",200304,C.01414.203
01/12/2020,ZZH685437,1,3529,Totally Local Company Ltd,390000,Supplies and services,Supplies and services,#N/A,#N/A,"9,989.00",401600,C.01428.203
01/12/2020,ZZH685438,1,3529,Totally Local Company Ltd,240000,Horticultural  ,Grounds Maintenance,#N/A,#N/A,"36,934.47",202032,C.01398.203
01/12/2020,ZZH685439,1,683,AECOM Limited,150000,Consultancy   ,Professional Fees,Services to Place,Passages Rail & Marr,"10,190.00",401007,11998
01/12/2020,ZZH685440,1,3529,Totally Local Company Ltd,240000,Horticultural  ,Grounds Maintenance,#N/A,#N/A,"38,270.63",202032,C.01413.201
01/12/2020,ZZH685457,1,10499,Gravitas Recruitment Group Lim,999999,UNCLASSIFIED  ,MISCLASSIFIED? CHECK BEFORE PUBLICATION,Corporate and Support Services,Business Intelligenc,"5,927.20",100100,11872
02/12/2020,ZZH685483,1,7802,Craemer UK Ltd,182020,Environmental Services Waste Management,Waste Management Equipment,Services to Place,Wheelie Bins,"9,628.50",400401,10864
02/12/2020,ZZH685483,2,7802,Craemer UK Ltd,182020,Environmental Services Waste Management,Waste Management Equipment,Services to Place,Wheelie Bins,"7,140.00",400401,10864
02/12/2020,ZZH685483,3,7802,Craemer UK Ltd,182020,Environmental Services Waste Management,Waste Management Equipment,Services to Place,Wheelie Bins,"8,657.25",400401,10864
02/12/2020,ZZH685483,4,7802,Craemer UK Ltd,182020,Environmental Services Waste Management,Waste Management Equipment,Services to Place,Wheelie Bins,"8,657.25",400401,10864
02/12/2020,ZZH685493,1,11973,Virgin Media Ltd,270000,Information Communication Technology  ,Information and Communications Technology,Corporate and Support Services,IT Infrastructure,"9,992.31",402003,11324
02/12/2020,ZZH685501,1,7819,Kings Chambers,280000,Legal Services  ,Legal Fees,Services to Place,Planning,"5,000.00",401016,12150
03/12/2020,ZZH685529,1,11021,The Laurus Trust (Cheadle Hulm,150000,Consultancy   ,Professional Fees,Services to People,T.Union facilities,"9,884.23",401020,10472
04/12/2020,ZZH685600,1,3529,Totally Local Company Ltd,390000,"Works - Construction, Repair & Maintenance  ",Capital Expenditure - Works,#N/A,#N/A,"28,564.72",200304,C.01302.203
04/12/2020,ZZH685601,1,3529,Totally Local Company Ltd,390000,"Works - Construction, Repair & Maintenance  ",Capital Expenditure - Works,#N/A,#N/A,"10,482.68",200304,C.01302.203
04/12/2020,ZZH685602,1,3529,Totally Local Company Ltd,390000,"Works - Construction, Repair & Maintenance  ",Capital Expenditure - Works,#N/A,#N/A,"45,048.28",200304,C.01302.203
07/12/2020,ZZH685623,1,10899,Agricultural and Rural Centre,320000,Social Community Care Supplies & Services  ,Third party payments - Private/Voluntary Sector,Services to People,Top-up Fund Post 16,"5,040.00",402403,12724
07/12/2020,ZZH685627,1,13846,Knowledgepool Group Ltd,261500,Human Resources Training & Conferences ,Fees and Charges,Services to People,Reducing Prtal Conf,"8,243.64",401024,13036
07/12/2020,ZZH685648,1,10855,Bloom Procurement Services,150000,Consultancy   ,Professional Fees,Services to People,CADA grant,"10,000.00",401020,13032
07/12/2020,ZZH685666,1,5643,Lisclare Ltd,181800,Environmental Services Technical Equipment ,Furniture and Equipment,Services to People,SEN Equipment,"3,429.75",400110,10324
07/12/2020,ZZH685666,2,5643,Lisclare Ltd,181800,Environmental Services Technical Equipment ,Furniture and Equipment,Services to People,SEN Equipment,"1,150.50",400110,10324
07/12/2020,ZZH685666,3,5643,Lisclare Ltd,181800,Environmental Services Technical Equipment ,Furniture and Equipment,Services to People,SEN Equipment,192.00,400110,10324
07/12/2020,ZZH685666,4,5643,Lisclare Ltd,181800,Environmental Services Technical Equipment ,Furniture and Equipment,Services to People,SEN Equipment,231.00,400110,10324
07/12/2020,ZZH685666,5,5643,Lisclare Ltd,181800,Environmental Services Technical Equipment ,Furniture and Equipment,Services to People,SEN Equipment,140.25,400110,10324
07/12/2020,ZZH685666,6,5643,Lisclare Ltd,181800,Environmental Services Technical Equipment ,Furniture and Equipment,Services to People,SEN Equipment,80.00,400110,10324
07/12/2020,ZZH685667,1,12191,WILMSLOW HIGH SCHOOL,170000,Education  ,Third party payments - Public Sector,Services to People,OLA pupils,"10,705.00",500304,10371
07/12/2020,ZZH685668,1,10985,Broadstones School Ltd,261500,Human Resources Training & Conferences ,Fees and Charges,Services to People,SEN Independent Sch,"12,675.00",401024,10372
08/12/2020,ZZH685699,1,12188,ST JOHN VIANNEY,261500,Human Resources Training & Conferences ,Fees and Charges,Services to People,SEN NMSS School Fees,"11,500.00",401024,12710
08/12/2020,ZZH685703,1,3529,Totally Local Company Ltd,181800,Environmental Services Technical Equipment ,Furniture and Equipment,#N/A,#N/A,"10,344.00",400110,C.01190.203
08/12/2020,ZZH685704,1,3529,Totally Local Company Ltd,390000,Supplies and services,Supplies and services,#N/A,#N/A,"225,772.84",401600,C.01387.203
08/12/2020,ZZH685705,1,3529,Totally Local Company Ltd,240000,Horticultural  ,Grounds Maintenance,#N/A,#N/A,"68,444.74",202032,C.01413.202
08/12/2020,ZZH685706,1,3529,Totally Local Company Ltd,390000,"Works - Construction, Repair & Maintenance  ",Capital Expenditure - Works,#N/A,#N/A,"17,911.27",200304,C.00994.203
08/12/2020,ZZH685709,1,3529,Totally Local Company Ltd,390000,Supplies and services,Supplies and services,#N/A,#N/A,"19,887.39",401600,C.01387.203
08/12/2020,ZZH685710,1,3529,Totally Local Company Ltd,181800,Environmental Services Technical Equipment ,Furniture and Equipment,#N/A,#N/A,"7,378.63",400110,C.01190.203
08/12/2020,ZZH685714,1,3529,Totally Local Company Ltd,390000,Supplies and services,Supplies and services,#N/A,#N/A,"31,921.50",401600,C.00880.203
08/12/2020,ZZH685719,1,12193,Greater Manchester Combined Au,390000,"Works - Construction, Repair & Maintenance  ",Capital Expenditure - Works,#N/A,#N/A,"5,663.53",200304,C.00614.203
09/12/2020,ZZH685738,1,14466,Freshworks,270000,Information Communication Technology  ,Information and Communications Technology,Corporate and Support Services,IT Main,"33,760.00",402002,11073
09/12/2020,ZZH685753,1,2746,Local Government Info Unit,200000,Financial Services  ,Fees and Charges,Corporate and Support Services,Strategy & Design,"14,100.00",402401,12642
09/12/2020,ZZH685754,1,7979,Delib Limited,200000,Financial Services  ,Fees and Charges,Corporate and Support Services,Strategy & Design,"7,795.00",402401,12642
09/12/2020,ZZH685782,1,14474,Crosson Consulting Ltd,150000,Consultancy   ,Professional Fees,Corporate and Support Services,Library Dev & Res,"9,500.00",401007,11328
10/12/2020,ZZH685808,1,10105,Mastercall Healthcare,320000,Social Community Care Supplies & Services  ,Third party payments - Private/Voluntary Sector,Services to People,Winter Pressures,"101,359.00",402403,12935
10/12/2020,ZZH685821,1,7025,CBRE Limited,150000,Consultancy   ,Professional Fees,Services to Place,Merseyway Shop Ctre,"6,150.00",401020,12866
10/12/2020,ZZH685835,1,7166,THE DARTINGTON HALL TRUST,390000,Supplies and services,Supplies and services,Services to People,WD-Staff Dev-Grants,"10,782.00",401600,12202
11/12/2020,ZZH685857,1,13860,Howard Lynn Property Ltd,261400,Human Resources Temporary & Agency Staff ,Agency Staff,Services to Place,Property Client Acct,"6,626.21",100290,12328
14/12/2020,ZZH685881,1,14476,One School Global,261500,Human Resources Training & Conferences ,Fees and Charges,Services to People,SEN Specific support,"6,487.00",401024,10300
14/12/2020,ZZH685882,1,14475,St Matthews Roman Catholic Hig,170000,Education  ,Third party payments - Public Sector,Services to People,OLA pupils,"6,433.00",500304,10371
14/12/2020,ZZH685883,1,13316,New Bridge Multi Academy Group,170000,Education  ,Third party payments - Public Sector,Services to People,OLA pupils,"14,800.00",500304,10371
15/12/2020,ZZH685935,1,757,Transport for Greater Manchest,150000,Consultancy   ,Professional Fees,Services to Place,Trans Cap HOS,"12,584.00",401020,13063
15/12/2020,ZZH685936,1,5014,The Compost Bag Company Ltd,182020,Environmental Services Waste Management,Waste Management Equipment,Services to Place,Food ContrsHouse Bag,"245,499.00",400401,10865
15/12/2020,ZZH685946,1,757,Transport for Greater Manchest,150000,Consultancy   ,Professional Fees,#N/A,#N/A,"100,904.16",401007,C.01062
15/12/2020,ZZH685947,1,9315,Carillion Morgan Sindall JV,390000,Supplies and services,Supplies and services,#N/A,#N/A,"120,000.00",401600,C.00880.203
15/12/2020,ZZH685949,1,683,AECOM Limited,150000,Consultancy   ,Professional Fees,#N/A,#N/A,"33,338.50",401007,C.01429.201
15/12/2020,ZZH685952,1,8106,Tarmac Trading Ltd,390000,"Works - Construction, Repair & Maintenance  ",Capital Expenditure - Works,#N/A,#N/A,"28,564.72",200304,C.01302.203
15/12/2020,ZZH685961,1,10105,Mastercall Healthcare,390000,Supplies and services,Supplies and services,Services to People,PH-Communities,"25,000.00",401600,12738
15/12/2020,ZZH685975,1,14477,Birchfields Primary School,170000,Education  ,Third party payments - Public Sector,Services to People,OLA pupils,"5,928.00",500304,10371
15/12/2020,ZZH685998,1,5214,WSP GROUP PLC,150000,Consultancy   ,Professional Fees,Services to Place,Design Frmwk Staff,"30,441.84",401020,11965
16/12/2020,ZZH686068,1,10858,Acorn Recovery Projects,320000,Social Community Care Supplies & Services  ,Third party payments - Private/Voluntary Sector,Services to Place,Contin Educ Service,"42,390.00",402403,10511
16/12/2020,ZZH686070,1,3529,Totally Local Company Ltd,390000,Supplies and services,Supplies and services,#N/A,#N/A,"6,588.00",401600,C.01365.203
18/12/2020,ZZH686130,1,909,DWF LLP,280000,Legal Services  ,Legal Fees,Corporate and Support Services,Legal Fees Budget,"5,500.00",401016,12271
21/12/2020,ZZH686164,1,13884,Crossroads Together,320000,Social Community Care Supplies & Services  ,Care Payments,Services to People,Marple ECH,"170,000.00",530332,13050
21/12/2020,ZZH686165,1,13884,Crossroads Together,320000,Social Community Care Supplies & Services  ,Care Payments,Services to People,Edgeley ECH,"170,000.00",530332,13049
21/12/2020,ZZH686184,1,7025,CBRE Limited,150000,Consultancy   ,Professional Fees,Services to Place,MDC Mayoral DC,"10,000.00",401007,13033
21/12/2020,ZZH686185,1,14256,Environmental Engineering Part,171012,Education Examinational Fees ,Fees and Charges,Services to Place,MDC Mayoral DC,"14,737.50",401012,13033
21/12/2020,ZZH686186,1,7025,CBRE Limited,150000,Consultancy   ,Professional Fees,Services to Place,Town Centre Devt Tea,"18,375.00",401020,10072
22/12/2020,ZZH686198,1,10670,Osborne Richardson,150000,Consultancy   ,Professional Fees,Services to Place,Food & Safety,"12,950.00",401007,10912
22/12/2020,ZZH686206,1,8696,Chubb Security,181800,Environmental Services Technical Equipment ,Furniture and Equipment,Services to People,"Aids, Equip & Maint",480.00,400110,11658
22/12/2020,ZZH686206,2,8696,Chubb Security,181800,Environmental Services Technical Equipment ,Furniture and Equipment,Services to People,"Aids, Equip & Maint",350.00,400110,11658
22/12/2020,ZZH686206,3,8696,Chubb Security,181800,Environmental Services Technical Equipment ,Furniture and Equipment,Services to People,"Aids, Equip & Maint",240.00,400110,11658
22/12/2020,ZZH686206,4,8696,Chubb Security,181800,Environmental Services Technical Equipment ,Furniture and Equipment,Services to People,"Aids, Equip & Maint","1,980.00",400110,11658
22/12/2020,ZZH686206,5,8696,Chubb Security,181800,Environmental Services Technical Equipment ,Furniture and Equipment,Services to People,"Aids, Equip & Maint","3,960.00",400110,11658
22/12/2020,ZZH686206,6,8696,Chubb Security,181800,Environmental Services Technical Equipment ,Furniture and Equipment,Services to People,"Aids, Equip & Maint",390.00,400110,11658
22/12/2020,ZZH686209,1,6967,Wilde Consultants Ltd,150000,Consultancy   ,Professional Fees,Services to Place,Network Assets Staff,"23,532.00",401007,11959
22/12/2020,ZZH686210,1,3529,Totally Local Company Ltd,390000,Supplies and services,Supplies and services,#N/A,#N/A,"8,496.59",401600,C.01231.203
22/12/2020,ZZH686215,1,2927,XMA Ltd,270000,Information Communication Technology  ,Information and Communications Technology,Services to People,Brokerage Service,"6,011.40",402001,12677
22/12/2020,ZZH686215,2,2927,XMA Ltd,270000,Information Communication Technology  ,Information and Communications Technology,Services to People,Brokerage Service,35.00,402001,12677
22/12/2020,ZZH686215,3,2927,XMA Ltd,270000,Information Communication Technology  ,Information and Communications Technology,Services to People,Brokerage Service,35.00,402001,12677
22/12/2020,ZZH686215,4,2927,XMA Ltd,270000,Information Communication Technology  ,Information and Communications Technology,Services to People,Brokerage Service,122.20,402001,12677
22/12/2020,ZZH686215,5,2927,XMA Ltd,270000,Information Communication Technology  ,Information and Communications Technology,Services to People,Brokerage Service,169.40,402001,12677
22/12/2020,ZZH686216,1,6049,"TLC: Talk, Listen, Change",390000,Supplies and services,Supplies and services,Services to People,Domestic Abuse,"3,044.75",401600,12852
22/12/2020,ZZH686216,2,6049,"TLC: Talk, Listen, Change",390000,Supplies and services,Supplies and services,Services to People,Domestic Abuse,"49,292.95",401600,12852
22/12/2020,ZZH686234,1,12180,Acorn Care and Education,261500,Human Resources Training & Conferences ,Fees and Charges,Services to People,SEN Independent Sch,"18,000.00",401024,10372
23/12/2020,ZZH686266,1,11119,One Advanced,270000,Information Communication Technology  ,Information and Communications Technology,Corporate and Support Services,I.T Business Relat,"8,751.75",402003,13044
23/12/2020,ZZH686266,2,11119,One Advanced,270000,Information Communication Technology  ,Information and Communications Technology,Corporate and Support Services,I.T Business Relat,660.00,402003,13044
23/12/2020,ZZH686266,3,11119,One Advanced,270000,Information Communication Technology  ,Information and Communications Technology,Corporate and Support Services,I.T Business Relat,"25,112.00",402003,13044
29/12/2020,ZZH686308,1,12379,Geoffrey Osborne Ltd,390000,Supplies and services,Supplies and services,#N/A,#N/A,"26,317.78",401600,C.01149.203
30/12/2020,ZZH686309,1,12176,Fledglings Education and Child,321115,Social Community Care Supplies & Services Children Childcare Services,Expenses and Allowances,Services to People,Early Years SEN,"5,045.32",402210,12942
31/12/2020,ZZH686319,1,14487,Bytes Software Services Ltd,270000,Information Communication Technology  ,Information and Communications Technology,Corporate and Support Services,IT Infrastructure,"65,457.23",402002,11324
02/10/2020,ZZP683121,1,11085,Keelagher Okey Klein,390000,"Works - Construction, Repair & Maintenance  ",Capital Expenditure - Works,#N/A,#N/A,"6,509.10",200304,C.10408.168
02/10/2020,ZZP683139,1,4708,The Dodd Group,390000,"Works - Construction, Repair & Maintenance  ",Repairs and Maintenance,#N/A,#N/A,"41,828.05",200123,C.10298.125
14/10/2020,ZZP683533,1,7915,Seddon Construction Ltd,390000,"Works - Construction, Repair & Maintenance  ",Repairs and Maintenance,#N/A,#N/A,"38,500.00",200123,C.11508.004
14/10/2020,ZZP683557,1,7889,Thomas Kershaw Builders,390000,"Works - Construction, Repair & Maintenance  ",Repairs and Maintenance,#N/A,#N/A,"469,620.00",200123,C.10291.184
16/10/2020,ZZP683627,1,14277,Conlon Construction Ltd,390000,"Works - Construction, Repair & Maintenance  ",Repairs and Maintenance,#N/A,#N/A,"5,007,497.93",200123,C.10408.166
21/10/2020,ZZP683889,1,2438,J Greenwood (Builders) Ltd,390000,"Works - Construction, Repair & Maintenance  ",Capital Expenditure - Works,#N/A,#N/A,"41,472.00",200311,C.11508.006
21/10/2020,ZZP683892,1,6698,Brook Edgeley Specialist te,390000,"Works - Construction, Repair & Maintenance  ",Capital Expenditure - Works,#N/A,#N/A,"9,762.00",200311,C.11502.119
27/10/2020,ZZP684136,1,6698,Brook Edgeley Specialist te,390000,"Works - Construction, Repair & Maintenance  ",Capital Expenditure - Works,#N/A,#N/A,"6,130.00",200311,C.11502.121
28/10/2020,ZZP684179,1,683,AECOM Limited,390000,"Works - Construction, Repair & Maintenance  ",Repairs and Maintenance,#N/A,#N/A,"13,390.00",200123,C.10423.184
10/11/2020,ZZP684628,1,6698,Brook Edgeley Specialist te,390000,"Works - Construction, Repair & Maintenance  ",Capital Expenditure - Works,#N/A,#N/A,"11,677.00",200311,C.11502.121
10/11/2020,ZZP684629,1,2370,HH Smith & Sons Co Ltd,390000,"Works - Construction, Repair & Maintenance  ",Repairs and Maintenance,#N/A,#N/A,"598,574.00",200123,C.11508.001
10/11/2020,ZZP684629,2,2370,HH Smith & Sons Co Ltd,390000,"Works - Construction, Repair & Maintenance  ",Repairs and Maintenance,#N/A,#N/A,"873,945.00",200123,C.11508.007
12/11/2020,ZZP684782,1,10897,Three Sixty SHG Ltd,390000,"Works - Construction, Repair & Maintenance  ",Capital Expenditure - Works,#N/A,#N/A,"28,181.55",200311,C.11502.116
12/11/2020,ZZP684786,1,12902,ECS Consultants Limited,390000,"Works - Construction, Repair & Maintenance  ",Repairs and Maintenance,Services to People,Condition Surveys,"7,285.00",200123,10734
26/11/2020,ZZP685299,1,7889,Thomas Kershaw Builders,390000,"Works - Construction, Repair & Maintenance  ",Repairs and Maintenance,#N/A,#N/A,"36,079.70",200123,C.11502.084
02/12/2020,ZZP685488,1,10897,Three Sixty SHG Ltd,390000,"Works - Construction, Repair & Maintenance  ",Capital Expenditure - Works,#N/A,#N/A,"148,020.05",200311,C.11502.116
07/12/2020,ZZP685643,1,10772,Tuv Sud Ltd t/a Dunbar & Bo,390000,"Works - Construction, Repair & Maintenance  ",Capital Expenditure - Works,#N/A,#N/A,"6,300.00",200311,C.11502.109
07/12/2020,ZZP685644,1,10772,Tuv Sud Ltd t/a Dunbar & Bo,390000,"Works - Construction, Repair & Maintenance  ",Capital Expenditure - Works,#N/A,#N/A,"6,300.00",200311,C.11502.109
20/12/2020,ZZP686146,1,4708,The Dodd Group,390000,"Works - Construction, Repair & Maintenance  ",Repairs and Maintenance,#N/A,#N/A,"5,052.00",200121,C.10297.110
